bitfinex-derivatives/quotes_SOLF0:USTF0_20240923
["timestamp","ask_amount","ask_price","bid_price","bid_amount"]
[1727079465733,7.46,144.14,144.12,3.4693]
[1727079466537,7.46,144.15,144.11,7.46]
[1727079467342,7.46,144.15,144.14,3.469]
[1727079468632,3.44370401,144.16,144.03,3.50748855]
[1727079468938,98.27034048,144.14,143.99,7.46]
[1727079469128,96.92574048,144.14,144.02,7.46]
[1727079469333,7.46,144.08,144.04,3.4712]
[1727079469533,7.46,144.09,144.05,7.46]
[1727079469734,7.46,144.09,143.99,4.89426862]
[1727079469945,7.46,144.07,144.03,3.4715]
[1727079470138,7.46,144.07,143.97,1.3762]
[1727079470343,11.67,144.07,143.98,1.4523]
[1727079471045,8.5962816,144.06,144.01,3.4721]
[1727079471339,3.4709,144.06,144.01,3.4721]
[1727079472435,15.1407,144.07,144.02,3.4718]
[1727079473439,3.471,144.06,144.0,3.4722]
[1727079473749,11.67,144.08,143.98,1.4523]
[1727079473945,0.8524,144.14,144.03,11.67]
[1727079474159,16.72737946,144.13,144.04,13.0538]
[1727079474446,16.72737946,144.13,144.0,11.67]
[1727079474447,11.67,144.09,143.97,4.89043611]
[1727079474638,4.36538791,144.14,144.02,11.67]
[1727079474843,11.67,144.08,143.98,1.4565]
[1727079475038,1.3788,144.11,143.99,3.49249895]
[1727079475039,11.67,144.07,143.99,3.49249895]
[1727079475246,15.1408,144.07,144.02,3.4716]
[1727079478241,3.4704,144.08,144.03,3.4716]
[1727079479647,3.4707,144.07,144.03,3.4716]
[1727079479839,3.4707,144.07,144.0,15.16156378]
[1727079479840,11.67,144.07,143.98,14.5243]
[1727079480041,11.67,144.07,144.0,3.48704771]
[1727079480242,3.4711,144.06,144.0,15.15704771]
[1727079480650,3.4711,144.06,144.0,11.67]
[1727079480852,3.4705,144.08,144.0,11.67]
[1727079481046,3.4705,144.08,144.01,11.67]
[1727079481950,11.67,144.07,143.85,10.4277]
[1727079482153,11.67,144.07,143.97,11.67]
[1727079482353,15.10912771,144.07,143.97,11.67]
[1727079482549,11.67,144.05,143.97,11.67]
[1727079483159,11.67,144.03,143.93,2.7733]
[1727079483451,11.67,144.03,143.93,14.4433]
[1727079483750,0.8561,144.07,143.95,11.67]
[1727079483950,11.67,144.06,143.96,1.4289]
[1727079484252,3.4723,144.01,143.97,3.4729]
[1727079484648,12.67,144.06,143.97,11.67]
[1727079484840,12.67,144.06,143.96,1.4289]
[1727079484841,1.0,144.06,143.99,11.67]
[1727079485249,12.67,144.06,143.96,1.4289]
[1727079485445,1.0,144.06,143.98,11.67]
[1727079485648,11.67,144.1,144.01,11.67]
[1727079485848,11.67,144.08,143.99,13.1065]
[1727079486044,11.67,144.08,143.99,1.4365]
[1727079486552,11.67,144.08,144.01,3.472]
[1727079486746,11.67,144.08,143.99,1.4365]
[1727079486946,11.67,144.08,144.0,1.4064]
[1727079487548,3.4714,144.05,144.01,3.472]
[1727079487749,11.67,144.08,144.0,1.4064]
[1727079488343,11.67,144.06,143.99,1.4365]
[1727079489051,11.67,144.04,143.99,1.4365]
[1727079489652,3.4717,144.03,143.99,1.4365]
[1727079490348,3.4719,144.02,143.99,1.4365]
[1727079490553,11.67,144.06,143.99,1.4365]
[1727079490855,3.4718,144.03,143.99,4.9089]
[1727079491252,11.67,144.06,143.99,4.9089]
[1727079491456,11.67,144.06,144.0,3.4723]
[1727079492355,11.67,144.06,143.99,4.9091]
[1727079492554,11.67,144.06,143.99,1.4365]
[1727079492854,3.4718,144.03,143.99,1.4365]
[1727079493156,3.4718,144.03,143.99,4.9091]
[1727079493354,11.67,144.06,143.99,4.9091]
[1727079493355,3.4719,144.02,143.99,4.9091]
[1727079495859,3.4717,144.03,143.99,4.9091]
[1727079496254,3.4717,144.03,144.0,3.4723]
[1727079496865,11.67,144.06,143.99,1.4365]
[1727079496866,3.4714,144.04,143.99,1.4365]
[1727079497261,3.4714,144.04,144.0,3.4723]
[1727079497462,3.4714,144.04,143.99,1.4365]
[1727079497769,11.67,144.06,143.99,1.4365]
[1727079498157,3.4718,144.03,143.99,1.4365]
[1727079498661,3.4719,144.02,143.99,4.9089]
[1727079498867,11.67,144.06,143.99,4.9089]
[1727079499259,11.67,144.06,143.98,3.4728]
[1727079499465,11.67,144.04,143.96,13.0989]
[1727079499966,3.4723,144.01,143.97,3.4728]
[1727079500564,5.77571278,144.11,143.96,13.0989]
[1727079500876,11.67,144.06,143.96,13.0989]
[1727079501065,3.4716,144.04,144.0,3.4722]
[1727079501565,3.4718,144.03,143.99,3.4725]
[1727079502669,3.4719,144.02,143.99,3.4725]
[1727079502875,11.67,144.04,143.97,3.473]
[1727079503072,11.67,144.04,143.95,1.4129]
[1727079503864,3.4722,144.01,143.98,3.4727]
[1727079504069,3.43244182,144.03,143.98,3.4727]
[1727079504272,11.67,144.06,143.96,11.67]
[1727079504465,5.77571278,144.11,143.98,11.67]
[1727079504671,11.67,144.07,143.98,11.67]
[1727079505166,3.4715,144.04,143.98,11.67]
[1727079505376,11.67,144.07,143.98,11.67]
[1727079505975,1.0,144.1,143.98,11.67]
[1727079505976,3.4719,144.02,143.99,3.4726]
[1727079507167,8.0,144.04,144.0,3.4723]
[1727079508064,8.0,144.04,143.97,3.473]
[1727079508267,11.67,144.03,143.97,3.473]
[1727079508468,15.13036267,144.03,143.95,1.4129]
[1727079508677,11.67,144.01,143.95,1.4129]
[1727079509169,3.4727,143.99,143.96,3.4731]
[1727079509572,11.67,144.03,143.96,3.4731]
[1727079509766,8.0,144.04,143.96,11.67]
[1727079510566,3.4721,144.01,143.98,3.4727]
[1727079510770,8.0,144.04,143.98,3.4727]
[1727079511076,8.0,144.04,143.96,11.67]
[1727079511477,8.0,144.04,143.95,1.4129]
[1727079511677,8.0,144.04,144.0,11.67]
[1727079511881,8.0,144.04,144.02,3.4717]
[1727079512278,8.0,144.04,144.0,11.67]
[1727079512476,11.4714,144.04,144.01,3.4719]
[1727079513077,8.0,144.04,144.02,3.4718]
[1727079513473,8.0,144.04,144.0,11.67]
[1727079513677,8.0,144.04,144.01,1.3727]
[1727079513884,8.0,144.04,144.03,3.4716]
[1727079514288,8.0,144.04,143.92,98.53691308]
[1727079514289,8.0,144.04,143.87,225.0]
[1727079514478,8.0,144.04,143.95,11.67]
[1727079514874,8.0,144.04,143.93,4.1988]
[1727079515075,8.0,144.04,143.94,11.67]
[1727079515886,8.0,144.04,143.96,11.67]
[1727079516089,3.4718,144.03,143.99,3.4724]
[1727079516384,8.0,144.04,143.84,83.36]
[1727079516583,11.67,144.01,143.91,11.67]
[1727079517384,3.4733,143.97,143.93,3.474]
[1727079517795,11.67,143.97,143.88,4.2552]
[1727079517997,3.4737,143.95,143.91,3.4744]
[1727079518700,3.4737,143.95,143.92,3.4742]
[1727079519492,3.4734,143.96,143.92,3.4742]
[1727079519695,3.4734,143.96,143.93,3.474]
[1727079520096,8.0,143.95,143.93,3.474]
[1727079520598,5.8009,143.95,143.94,11.67]
[1727079521197,5.8009,143.95,143.94,15.1438]
[1727079522197,5.8009,143.95,143.94,3.4738]
[1727079525797,11.67,144.03,143.94,11.67]
[1727079526303,3.472,144.02,143.94,11.67]
[1727079526700,3.472,144.02,143.98,3.4726]
[1727079527001,3.472,144.02,143.94,11.67]
[1727079527199,3.472,144.02,143.95,11.67]
[1727079527806,3.472,144.02,143.99,3.4725]
[1727079529305,11.67,144.03,143.98,3.4727]
[1727079530812,3.4722,144.01,143.98,3.4727]
[1727079532710,4.39679606,144.04,143.97,11.67]
[1727079532711,0.8534,144.04,143.97,11.67]
[1727079533614,0.8534,144.04,143.99,3.4726]
[1727079534219,3.472,144.02,143.98,4.0]
[1727079534914,3.472,144.02,143.99,3.4725]
[1727079536021,3.472,144.02,144.0,3.4723]
[1727079536414,3.4717,144.03,144.0,3.4723]
[1727079539718,0.8534,144.04,143.99,3.4726]
[1727079540113,3.4721,144.02,143.99,3.4726]
[1727079540516,0.8534,144.04,143.98,4.0]
[1727079540924,3.4718,144.03,143.98,4.0]
[1727079541225,3.4718,144.03,144.0,3.4723]
[1727079541419,3.472,144.02,143.98,4.0]
[1727079541726,0.8534,144.04,143.98,7.4727]
[1727079542223,3.4722,144.01,143.98,7.4727]
[1727079542923,3.4726,143.99,143.98,4.0]
[1727079543229,11.67,144.03,143.98,4.0]
[1727079543520,3.4725,144.0,143.98,4.0]
[1727079544219,11.67,144.03,143.98,4.0]
[1727079545827,3.4725,144.0,143.98,4.0]
[1727079546326,3.4719,144.02,143.99,3.4725]
[1727079546629,3.4719,144.02,143.98,4.0]
[1727079546922,3.4719,144.02,143.99,3.4725]
[1727079547116,3.4719,144.02,143.98,4.0]
[1727079547629,3.4719,144.02,143.99,3.4725]
[1727079547928,0.8534,144.04,144.01,3.4719]
[1727079548115,3.50424089,144.06,143.99,11.67]
[1727079548519,3.4713,144.05,143.99,11.67]
[1727079548927,3.4713,144.05,144.02,3.4718]
[1727079549115,3.471,144.06,143.99,11.67]
[1727079549423,11.67,144.09,144.03,3.4715]
[1727079549727,3.47366958,144.08,144.01,11.67]
[1727079550140,3.4705,144.08,144.04,3.4712]
[1727079552138,3.4705,144.08,144.05,3.4711]
[1727079552621,3.52326895,144.1,144.04,3.4712]
[1727079552825,11.67,144.11,144.04,3.4712]
[1727079553424,3.4704,144.09,144.04,3.4712]
[1727079553729,3.43402392,144.1,144.03,3.4716]
[1727079553929,3.43402392,144.1,144.01,11.67]
[1727079554431,3.4707,144.07,144.01,11.67]
[1727079554926,3.4705,144.08,144.01,11.67]
[1727079555328,11.67,144.11,144.05,3.4711]
[1727079555829,15.17694444,144.11,144.05,3.4711]
[1727079556027,3.4704,144.09,144.05,3.4711]
[1727079556334,15.17694444,144.11,144.05,3.4711]
[1727079556532,3.4708,144.07,144.01,11.67]
[1727079556929,3.4708,144.07,144.03,3.4714]
[1727079557129,3.4708,144.07,144.01,11.67]
[1727079557331,3.4708,144.07,144.01,15.67]
[1727079557531,3.4705,144.08,144.04,3.4712]
[1727079558029,11.67,144.09,144.04,3.4712]
[1727079558234,3.4708,144.07,144.04,3.4712]
[1727079559544,15.17694444,144.11,144.02,11.67]
[1727079559742,3.50694444,144.11,144.04,11.67]
[1727079560237,3.4701,144.1,144.04,11.67]
[1727079561235,3.4701,144.1,144.06,3.4708]
[1727079562032,15.17694444,144.11,144.05,3.471]
[1727079563435,3.4703,144.09,144.05,3.471]
[1727079563638,3.4703,144.09,144.02,11.67]
[1727079563851,15.18503794,144.11,144.02,11.67]
[1727079564051,3.4702,144.09,144.02,11.67]
[1727079564342,15.18503794,144.11,144.05,3.471]
[1727079565130,15.18503794,144.11,144.06,3.4709]
[1727079565131,3.4704,144.09,144.06,3.4709]
[1727079566340,10.9304,144.09,144.06,3.4709]
[1727079566643,3.4704,144.09,144.06,3.4709]
[1727079569042,3.4704,144.08,144.05,10.931]
[1727079569843,10.94725782,144.11,144.01,4.0]
[1727079570038,7.46,144.08,144.03,7.46]
[1727079570439,3.4708,144.07,144.04,7.46]
[1727079570842,7.46,144.08,144.04,7.46]
[1727079571048,3.4705,144.08,144.05,3.471]
[1727079571747,10.9303,144.09,144.06,3.4709]
[1727079574350,1.4197,144.12,144.08,7.46]
[1727079574649,8.8797,144.12,144.08,7.46]
[1727079575142,3.4697,144.11,144.08,7.46]
[1727079575343,2.6494,144.13,144.09,7.46]
[1727079575550,10.1094,144.13,144.09,7.46]
[1727079575746,3.4696,144.12,144.09,7.46]
[1727079576241,3.4696,144.12,144.09,10.9302]
[1727079577342,3.4693,144.13,144.1,7.46]
[1727079577738,3.4682,144.18,144.14,3.4687]
[1727079577943,3.4682,144.18,144.16,7.46]
[1727079578145,1.4349,144.23,144.17,7.46]
[1727079578340,30.43149031,144.28,144.2,7.46]
[1727079578341,10.93403499,144.24,144.2,7.46]
[1727079578542,17.78394737,144.27,144.21,7.46]
[1727079578845,7.46,144.26,144.22,7.46]
[1727079579043,7.46,144.25,144.2,7.46]
[1727079579642,7.46,144.25,144.17,3.46292696]
[1727079579643,10.2346,144.27,144.21,7.46]
[1727079580039,1.3397,144.27,144.24,7.46]
[1727079580244,1.3837,144.28,144.24,7.46]
[1727079580441,11.65,144.32,144.23,11.65]
[1727079580639,11.65,144.32,144.24,3.4665]
[1727079580640,3.4658,144.28,144.24,3.4665]
[1727079581949,3.4654,144.29,144.24,3.4665]
[1727079582350,3.4658,144.28,144.23,15.1168]
[1727079582755,13.0186,144.32,144.23,11.65]
[1727079582946,3.4656,144.29,144.25,3.4662]
[1727079583147,1.3397,144.33,144.25,11.65]
[1727079583347,3.4651,144.3,144.26,3.4659]
[1727079584050,3.4649,144.31,144.27,3.4658]
[1727079586162,12.9897,144.33,144.19,2.7735]
[1727079586363,11.65,144.31,144.22,11.65]
[1727079586859,3.4659,144.27,144.22,11.65]
[1727079587263,3.4656,144.28,144.24,3.4664]
[1727079588049,11.65,144.3,144.2,11.65]
[1727079588660,3.4658,144.27,144.22,11.65]
[1727079589361,11.65,144.32,144.22,11.65]
[1727079590158,11.65,144.32,144.24,11.65]
[1727079590659,1.3397,144.33,144.26,3.466]
[1727079590856,12.9897,144.33,144.26,3.466]
[1727079591253,3.4653,144.3,144.26,3.466]
[1727079591564,1.3397,144.33,144.26,11.65]
[1727079591860,1.3397,144.33,144.26,15.07601168]
[1727079592057,1.3397,144.33,144.28,11.65]
[1727079592257,3.4644,144.33,144.28,11.65]
[1727079593059,3.4644,144.33,144.29,3.4653]
[1727079593260,1.3874,144.39,144.27,1.3348]
[1727079593261,3.4639,144.35,144.3,11.65]
[1727079593658,4.1181,144.39,144.32,11.65]
[1727079593860,3.4637,144.36,144.32,11.65]
[1727079594055,11.65,144.38,144.3,11.65]
[1727079594257,2.7801,144.39,144.3,11.65]
[1727079594453,3.4639,144.36,144.32,11.65]
[1727079594768,3.4639,144.36,144.27,15.7102]
[1727079594769,2.7801,144.39,144.34,11.65]
[1727079595357,3.39975765,144.42,144.34,15.1141]
[1727079595564,11.65,144.44,144.36,11.65]
[1727079595767,3.55296859,144.43,144.36,11.65]
[1727079595961,3.55296859,144.43,144.36,15.1135]
[1727079596761,3.4629,144.4,144.36,11.65]
[1727079596972,3.55296859,144.43,144.36,11.65]
[1727079597160,3.55296859,144.43,144.34,11.65]
[1727079597361,3.55296859,144.43,144.35,3.4639]
[1727079597863,3.55296859,144.43,144.34,11.65]
[1727079598164,3.55296859,144.43,144.36,3.4637]
[1727079598363,3.4629,144.4,144.36,11.65]
[1727079598666,3.55296859,144.43,144.36,15.1135]
[1727079598867,11.65,144.44,144.36,11.65]
[1727079599059,11.65,144.44,144.36,15.1137]
[1727079599255,3.51996116,144.43,144.36,11.65]
[1727079599659,3.4627,144.4,144.37,3.4633]
[1727079599859,3.51996116,144.43,144.36,11.65]
[1727079600058,3.4632,144.39,144.36,11.65]
[1727079600262,3.41358966,144.42,144.34,11.65]
[1727079600461,11.65,144.43,144.34,11.65]
[1727079600768,3.4629,144.4,144.34,11.65]
[1727079601165,3.4629,144.4,144.36,11.65]
[1727079601365,14.438,144.45,144.38,11.65]
[1727079601366,2.788,144.45,144.38,11.65]
[1727079601668,3.40839235,144.44,144.38,11.65]
[1727079601870,2.788,144.45,144.39,3.4628]
[1727079602460,6.27954923,144.45,144.39,3.4628]
[1727079602668,6.27954923,144.45,144.38,11.65]
[1727079603060,3.462,144.43,144.38,11.65]
[1727079603275,3.462,144.43,144.39,3.463]
[1727079603568,3.4623,144.42,144.39,3.463]
[1727079604467,3.4621,144.43,144.4,3.4626]
[1727079604671,2.788,144.45,144.38,11.65]
[1727079604869,6.24591416,144.45,144.36,15.1135]
[1727079605069,11.65,144.44,144.36,15.1135]
[1727079605265,11.65,144.44,144.36,11.65]
[1727079605462,6.24591416,144.45,144.38,11.65]
[1727079605967,6.24591416,144.45,144.38,15.1131]
[1727079606567,3.4624,144.42,144.38,15.1131]
[1727079607672,11.65,144.44,144.3,83.16]
[1727079607974,17.83691267,144.45,144.37,11.65]
[1727079608176,17.83691267,144.45,144.38,3.463]
[1727079608472,2.788,144.45,144.39,11.65]
[1727079609662,2.788,144.45,144.4,11.65]
[1727079609862,107.68920663,144.49,144.4,11.65]
[1727079610061,3.4617,144.45,144.41,3.4623]
[1727079610262,3.4617,144.45,144.4,11.65]
[1727079610263,96.03920663,144.49,144.4,11.65]
[1727079610465,11.65,144.51,144.4,11.65]
[1727079610667,11.65,144.51,144.42,11.65]
[1727079610869,3.4613,144.47,144.43,3.462]
[1727079611069,11.65,144.51,144.42,11.65]
[1727079611365,15.9607,144.52,144.42,11.65]
[1727079611563,3.4606,144.49,144.44,3.4617]
[1727079611960,3.4606,144.49,144.44,15.1117]
[1727079612571,3.4606,144.49,144.45,3.4615]
[1727079614076,3.4609,144.48,144.44,15.1117]
[1727079614268,3.40765324,144.51,144.44,11.65]
[1727079614467,15.05765324,144.51,144.43,11.65]
[1727079615176,3.461,144.48,144.44,3.4617]
[1727079615380,15.05765324,144.51,144.43,11.65]
[1727079615873,3.40765324,144.51,144.43,11.65]
[1727079616375,3.40765324,144.51,144.44,11.65]
[1727079617768,3.4607,144.49,144.45,3.4615]
[1727079618171,3.4604,144.5,144.44,11.65]
[1727079618374,14.4966,144.52,144.44,11.65]
[1727079618576,3.38802745,144.51,144.44,11.65]
[1727079618776,3.461,144.48,144.44,3.4616]
[1727079618979,3.461,144.48,144.42,11.65]
[1727079619280,3.461,144.48,144.44,3.4616]
[1727079619770,3.4611,144.47,144.44,3.4616]
[1727079619964,15.03802745,144.51,144.44,3.4616]
[1727079620363,3.461,144.48,144.44,3.4616]
[1727079621378,3.461,144.48,144.42,15.08442456]
[1727079621379,3.461,144.48,144.45,3.4615]
[1727079623175,3.4611,144.47,144.44,3.4618]
[1727079624370,3.4608,144.48,144.45,3.4614]
[1727079624571,15.03802745,144.51,144.44,11.65]
[1727079624972,3.4606,144.49,144.45,3.4614]
[1727079625174,15.03802745,144.51,144.44,11.65]
[1727079625369,15.03802745,144.51,144.45,3.4614]
[1727079625778,15.03802745,144.51,144.42,11.65]
[1727079625976,3.4609,144.48,144.45,3.4615]
[1727079627378,3.4609,144.48,144.41,3.51960133]
[1727079627379,3.38802745,144.51,144.46,11.65]
[1727079628676,6.84822745,144.51,144.48,3.4606]
[1727079628877,3.38802745,144.51,144.46,11.65]
[1727079630173,11.65,144.55,144.48,3.4607]
[1727079630375,15.08948819,144.55,144.48,3.4607]
[1727079630772,3.4601,144.52,144.48,3.4607]
[1727079630980,15.08948819,144.55,144.49,3.4605]
[1727079631180,3.43948819,144.55,144.49,3.4605]
[1727079631479,11.65,144.55,144.48,11.65]
[1727079631673,3.52070368,144.55,144.46,11.65]
[1727079631878,3.4605,144.5,144.46,11.65]
[1727079632079,3.4605,144.5,144.46,15.1111]
[1727079632379,3.4606,144.49,144.45,1.4571]
[1727079632575,3.4606,144.49,144.45,4.9185]
[1727079633081,3.461,144.48,144.45,4.9185]
[1727079633382,3.49266544,144.52,144.4,11.65]
[1727079633383,11.65,144.49,144.4,11.65]
[1727079633579,11.65,144.47,144.38,15.10701187]
[1727079633789,11.65,144.49,144.42,3.4622]
[1727079634176,11.65,144.49,144.4,15.1126]
[1727079634484,11.65,144.49,144.4,11.65]
[1727079634980,11.65,144.49,144.41,3.4624]
[1727079635571,11.65,144.49,144.36,6.2965575]
[1727079635572,4.0811,144.53,144.42,11.65]
[1727079635777,11.65,144.52,144.42,11.65]
[1727079635970,3.4609,144.48,144.44,3.4616]
[1727079636171,3.4609,144.48,144.42,11.65]
[1727079636378,11.65,144.5,144.42,11.65]
[1727079636573,7.50192965,144.53,144.38,11.65]
[1727079636777,11.65,144.46,144.38,11.65]
[1727079637177,11.65,144.46,144.4,3.4626]
[1727079637178,3.4619,144.44,144.4,3.4626]
[1727079637787,7.50192965,144.53,144.43,11.65]
[1727079638088,7.50192965,144.53,144.46,11.65]
[1727079638284,3.4602,144.51,144.47,3.4609]
[1727079639090,6.13662965,144.53,144.48,11.65]
[1727079639786,6.13662965,144.53,144.49,3.4605]
[1727079640285,9.59622965,144.53,144.49,3.4605]
[1727079640486,6.88042965,144.53,144.49,3.4605]
[1727079640691,6.88042965,144.53,144.5,3.4603]
[1727079641195,3.4595,144.54,144.48,11.65]
[1727079641798,6.91956677,144.55,144.49,11.65]
[1727079642100,11.65,144.58,144.49,11.65]
[1727079642397,11.65,144.58,144.51,3.4601]
[1727079642602,11.65,144.58,144.49,11.65]
[1727079643006,11.65,144.58,144.51,3.4599]
[1727079643300,11.65,144.58,144.49,11.65]
[1727079643501,11.65,144.56,144.47,11.65]
[1727079643691,3.50952364,144.55,144.47,11.65]
[1727079643897,3.4598,144.53,144.47,11.65]
[1727079644998,3.4598,144.53,144.5,3.4602]
[1727079645701,6.96882364,144.55,144.51,3.46]
[1727079645906,3.50952364,144.55,144.51,3.46]
[1727079646911,3.4596,144.53,144.47,11.65]
[1727079647097,3.50952364,144.55,144.47,11.65]
[1727079647402,1.0,144.57,144.49,11.65]
[1727079647701,4.41305067,144.57,144.49,11.65]
[1727079647898,3.4592,144.55,144.51,3.4601]
[1727079648094,3.47154921,144.55,144.51,3.4601]
[1727079648304,1.0,144.57,144.51,3.4601]
[1727079648503,3.44870552,144.55,144.51,3.4601]
[1727079648706,3.42067008,144.55,144.51,3.4601]
[1727079648903,12.65,144.57,144.51,3.4601]
[1727079649508,11.65,144.52,144.34,225.0]
[1727079649705,11.65,144.47,144.38,11.65]
[1727079649906,15.1693133,144.47,144.4,3.4626]
[1727079650407,15.1693133,144.47,144.37,3.4633]
[1727079650408,11.65,144.45,144.37,3.4633]
[1727079650603,11.65,144.43,144.36,2.7554]
[1727079651106,4.88870865,144.44,144.36,14.4054]
[1727079651307,1.4637,144.44,144.36,12.9717]
[1727079651504,4.9256,144.44,144.36,16.34994731]
[1727079651803,1.0,144.46,144.38,11.65]
[1727079652201,1.0,144.46,144.4,3.4625]
[1727079652704,3.4617,144.45,144.4,3.4625]
[1727079653207,1.0,144.46,144.38,11.65]
[1727079653408,4.4613,144.46,144.38,11.65]
[1727079653906,1.0,144.46,144.38,11.65]
[1727079654112,3.4615,144.45,144.41,3.4623]
[1727079654810,4.4614,144.46,144.42,3.4622]
[1727079655403,3.4615,144.45,144.42,3.4622]
[1727079655607,3.4615,144.45,144.41,3.4624]
[1727079656005,3.4619,144.44,144.38,12.65]
[1727079656216,3.4619,144.44,144.4,3.4626]
[1727079656710,12.65,144.46,144.38,1.0]
[1727079656911,11.65,144.44,144.38,1.0]
[1727079657811,3.4621,144.43,144.38,1.0]
[1727079658012,11.65,144.45,144.38,1.0]
[1727079658508,11.65,144.45,144.4,3.4625]
[1727079659311,3.4621,144.43,144.4,3.4625]
[1727079659713,3.4624,144.42,144.38,1.0]
[1727079660309,3.4624,144.42,144.39,3.4628]
[1727079663623,3.4621,144.43,144.4,3.4627]
[1727079664515,3.4619,144.44,144.38,1.0]
[1727079664823,1.0,144.46,144.38,12.65]
[1727079665020,11.65,144.45,144.38,12.65]
[1727079665321,1.0,144.46,144.42,11.65]
[1727079665513,3.461,144.48,144.45,3.4615]
[1727079665914,3.51863944,144.49,144.42,11.65]
[1727079666919,1.4538,144.51,144.42,11.65]
[1727079667112,13.1038,144.51,144.44,11.65]
[1727079667317,11.65,144.53,144.44,11.65]
[1727079667526,11.65,144.55,144.46,11.65]
[1727079668025,11.65,144.53,144.46,11.65]
[1727079669819,3.46,144.52,144.48,3.4608]
[1727079671427,11.65,144.53,144.45,1.4159]
[1727079672223,3.4603,144.51,144.47,3.461]
[1727079672421,11.65,144.53,144.45,1.4159]
[1727079673121,11.65,144.53,144.47,3.4609]
[1727079673122,3.4603,144.51,144.47,3.4609]
[1727079673421,11.65,144.53,144.46,11.65]
[1727079673818,1.3814,144.55,144.46,11.65]
[1727079674019,11.65,144.54,144.46,11.65]
[1727079674320,3.46,144.52,144.48,3.4607]
[1727079674526,6.93352142,144.52,144.48,3.4607]
[1727079674822,3.47352142,144.52,144.46,11.65]
[1727079675013,3.4602,144.51,144.48,3.4608]
[1727079675627,6.85172409,144.52,144.46,11.65]
[1727079676122,3.4599,144.52,144.48,3.4606]
[1727079677031,3.4599,144.52,144.49,3.4605]
[1727079679131,3.4598,144.53,144.49,3.4605]
[1727079679431,13.082,144.56,144.49,11.65]
[1727079679626,3.4592,144.55,144.49,11.65]
[1727079679829,11.65,144.58,144.53,3.4595]
[1727079680226,3.53820598,144.57,144.53,3.4595]
[1727079680424,3.459,144.56,144.53,3.4595]
[1727079680628,11.65,144.58,144.54,3.4593]
[1727079681031,15.15532945,144.58,144.54,3.4593]
[1727079681428,3.4588,144.57,144.54,3.4593]
[1727079681929,3.4585,144.58,144.55,3.4591]
[1727079682233,11.65,144.6,144.52,11.65]
[1727079682726,3.4330011,144.59,144.52,11.65]
[1727079683232,15.0830011,144.59,144.5,11.65]
[1727079683632,15.0830011,144.59,144.53,3.4595]
[1727079684131,3.4589,144.57,144.53,3.4595]
[1727079684333,11.65,144.57,144.49,1.4195]
[1727079684629,3.4593,144.55,144.49,1.4195]
[1727079684836,11.65,144.57,144.49,1.4195]
[1727079685229,3.4591,144.56,144.49,1.4195]
[1727079685429,3.4591,144.56,144.53,3.4595]
[1727079685832,3.4588,144.57,144.5,11.65]